bitfinex/quotes_BTCUSD_20250222
["timestamp","ask_amount","ask_price","bid_price","bid_amount"]
[1740251581252,0.00141206,96619.0,96618.0,0.67365346]
[1740251581421,0.00141206,96619.0,96618.0,0.67665346]
[1740251581950,0.00141206,96619.0,96618.0,0.67365346]
[1740251582352,0.00141206,96619.0,96618.0,0.67665346]
[1740251584591,0.00141206,96619.0,96618.0,0.65620344]
[1740251601037,0.00141206,96619.0,96618.0,0.65320344]
[1740251602076,0.00141206,96619.0,96618.0,0.65620344]
[1740251602830,0.00141206,96619.0,96618.0,0.65720344]
[1740251603234,0.00137206,96619.0,96618.0,0.65720344]
[1740251603948,0.00137206,96619.0,96618.0,0.65420344]
[1740251604146,0.00137206,96619.0,96618.0,0.65920344]
[1740251614160,0.00137206,96619.0,96618.0,0.63980155]
[1740251646277,0.00525762,96619.0,96618.0,0.48455155]
[1740251648569,0.01173623,96619.0,96618.0,0.48455155]
[1740251651105,0.01173623,96619.0,96618.0,0.47955155]
[1740251651309,0.01173623,96619.0,96618.0,0.47855155]
[1740251651531,0.01173623,96619.0,96618.0,0.48055155]
[1740251651730,0.01273623,96619.0,96618.0,0.48055155]
[1740251651931,0.01173623,96619.0,96618.0,0.47855155]
[1740251652192,0.01173623,96619.0,96618.0,0.48055155]
[1740251652776,0.01273623,96619.0,96618.0,0.48055155]
[1740251658146,0.00625762,96619.0,96618.0,0.48055155]
[1740251659671,0.01273622,96619.0,96618.0,0.48055155]
[1740251662509,0.01273622,96619.0,96618.0,0.45549589]
[1740251662908,0.01273622,96619.0,96618.0,0.48055155]
[1740251669160,0.00625762,96619.0,96618.0,0.48055155]
[1740251679087,0.16150562,96619.0,96618.0,0.48055155]
[1740251679304,0.16250567,96619.0,96618.0,0.37790586]
[1740251679865,0.23910567,96619.0,96618.0,0.37790586]
[1740251680089,0.23810562,96619.0,96618.0,0.37790586]
[1740251680507,0.23710562,96619.0,96618.0,0.37590586]
[1740251680927,0.24010562,96619.0,96618.0,0.37590586]
[1740251681509,0.24310562,96619.0,96618.0,0.37590586]
[1740251693018,0.16650562,96619.0,96618.0,0.37590586]
[1740251701563,0.01125762,96619.0,96618.0,0.37590586]
[1740251701804,0.16650562,96619.0,96618.0,0.37590586]
[1740251701990,0.01125762,96619.0,96618.0,0.37590586]
[1740251702710,0.01125762,96619.0,96618.0,0.63380155]
[1740251702942,0.01125762,96619.0,96618.0,0.64474322]
[1740251703162,0.01125762,96619.0,96618.0,0.63380155]
[1740251703480,0.01125762,96619.0,96618.0,0.65455552]
[1740251704192,0.00525762,96619.0,96618.0,0.65455552]
[1740251704719,0.00725762,96619.0,96618.0,0.65455552]
[1740251707299,0.00525762,96619.0,96618.0,0.65455552]
[1740251707510,0.00625762,96619.0,96618.0,0.65455552]
[1740251707707,0.00625762,96619.0,96618.0,0.65655552]
[1740251709814,0.00237206,96619.0,96618.0,0.65655552]
[1740251710554,0.00237206,96619.0,96618.0,0.65455552]
[1740251710695,0.00625762,96619.0,96618.0,0.65455552]
[1740251710895,0.00525762,96619.0,96618.0,0.65655552]
[1740251711099,0.00137206,96619.0,96618.0,0.65655552]
[1740251711299,0.00525762,96619.0,96618.0,0.65455552]
[1740251711522,0.00137206,96619.0,96618.0,0.65855552]
[1740251723836,0.00137206,96619.0,96618.0,0.65555552]
[1740251724047,0.00137206,96619.0,96618.0,0.65855552]
[1740251724568,0.00137206,96619.0,96618.0,0.65555552]
[1740251724774,0.00137206,96619.0,96618.0,0.66055552]
[1740251728166,0.00137206,96619.0,96618.0,0.73695552]
[1740251731999,0.00137206,96619.0,96618.0,0.74463552]
[1740251734009,0.00137206,96619.0,96618.0,0.73963552]
[1740251734436,0.00137206,96619.0,96618.0,0.74463552]
[1740251734834,0.00137206,96619.0,96618.0,0.73863552]
[1740251735029,0.00137206,96619.0,96618.0,0.74063552]
[1740251735244,0.00137206,96619.0,96618.0,0.74663552]
[1740251755018,0.00137206,96619.0,96618.0,0.77895464]
[1740251755610,0.00137206,96619.0,96618.0,0.77695464]
[1740251755824,0.00237206,96619.0,96618.0,0.78395464]
[1740251756721,0.00237206,96619.0,96618.0,0.93395464]
[1740251757851,0.00237206,96619.0,96618.0,0.92795464]
[1740251758189,0.00237206,96619.0,96618.0,0.93395464]
[1740251758612,0.00237206,96619.0,96618.0,0.92795464]
[1740251758989,0.00237206,96619.0,96618.0,0.93495464]
[1740251760171,0.00237206,96619.0,96618.0,1.25865464]
[1740251760415,0.00237206,96619.0,96618.0,1.18225464]
[1740251760832,0.00237206,96619.0,96618.0,1.14993552]
[1740251766352,0.00237206,96619.0,96618.0,1.18227058]
[1740251790035,0.00237206,96619.0,96618.0,1.27535416]
[1740251791716,6e-08,96619.0,96618.0,1.35745416]
[1740251792126,2.6e-07,96627.0,96626.0,0.305237]
[1740251792327,2.6e-07,96627.0,96626.0,0.52231775]
[1740251792511,2.6e-07,96627.0,96626.0,0.56353787]
[1740251792709,2.6e-07,96627.0,96626.0,0.58353787]
[1740251793256,2.6e-07,96627.0,96626.0,0.58768287]
[1740251793460,2.6e-07,96627.0,96626.0,0.60168287]
[1740251795707,2.6e-07,96627.0,96626.0,0.50504202]
[1740251795906,2.6e-07,96627.0,96626.0,0.82874202]
[1740251796998,2.6e-07,96627.0,96626.0,0.80459702]
[1740251797226,2.6e-07,96627.0,96626.0,0.77226196]
[1740251797381,2.6e-07,96627.0,96626.0,0.77994196]
[1740251797595,2.6e-07,96627.0,96626.0,0.62994196]
[1740251798554,2.6e-07,96627.0,96626.0,0.66226147]
[1740251798895,2.6e-07,96627.0,96626.0,0.62994196]
[1740251799106,2.6e-07,96627.0,96626.0,0.65107916]
[1740251800611,2.6e-07,96627.0,96626.0,0.64339916]
[1740251800807,2.6e-07,96627.0,96626.0,0.65107916]
[1740251802599,0.08230026,96627.0,96626.0,0.65107916]
[1740251803101,2.6e-07,96627.0,96626.0,0.65107916]
[1740251805270,2.6e-07,96627.0,96626.0,0.65192946]
[1740251808583,2.6e-07,96627.0,96626.0,0.68424999]
[1740251808942,2.6e-07,96627.0,96626.0,0.83424999]
[1740251811408,2.6e-07,96627.0,96626.0,0.84879084]
[1740251819738,2.6e-07,96627.0,96626.0,0.85293584]
[1740251830099,2.6e-07,96627.0,96626.0,0.84593584]
[1740251830299,2.6e-07,96627.0,96626.0,0.85293584]
[1740251830704,2.6e-07,96627.0,96626.0,0.84593584]
[1740251830898,2.6e-07,96627.0,96626.0,0.85293584]
[1740251832801,2.6e-07,96627.0,96626.0,0.87293584]
[1740251833006,2.6e-07,96627.0,96626.0,0.95333584]
[1740251833809,2.6e-07,96627.0,96626.0,0.94633584]
[1740251834007,2.6e-07,96627.0,96626.0,0.95333584]
[1740251834372,2.6e-07,96627.0,96626.0,0.96945028]
[1740251834673,2.6e-07,96627.0,96626.0,0.94633584]
[1740251835077,2.6e-07,96627.0,96626.0,0.95333584]
[1740251835229,2.6e-07,96627.0,96626.0,1.49333584]
[1740251835430,2.6e-07,96627.0,96626.0,1.50033584]
[1740251842402,0.001702,96648.0,96647.0,0.305203]
[1740251842611,0.001702,96648.0,96647.0,0.40784869]
[1740251842822,0.001702,96648.0,96647.0,0.43449685]
[1740251842984,0.001702,96648.0,96647.0,0.46558285]
[1740251843632,0.00213079,96648.0,96647.0,0.50888035]
[1740251843992,0.00213079,96648.0,96647.0,0.48426285]
[1740251844196,1e-08,96658.0,96657.0,0.155187]
[1740251844410,4.287e-05,96658.0,96657.0,0.25783269]
[1740251844619,4.287e-05,96658.0,96657.0,0.28446604]
[1740251845665,4.287e-05,96658.0,96657.0,0.28546604]
[1740251846429,4.287e-05,96658.0,96657.0,0.29146604]
[1740251847248,0.13014287,96658.0,96657.0,0.29146604]
[1740251849611,0.13184367,96658.0,96657.0,0.29146604]
[1740251849813,0.13184367,96658.0,96657.0,0.30205746]
[1740251851500,0.13184366,96658.0,96657.0,0.30205746]
[1740251851621,0.13184366,96658.0,96657.0,0.32246792]
[1740251852988,0.13184366,96658.0,96657.0,0.32146792]
[1740251853146,0.13184366,96658.0,96657.0,0.31746792]
[1740251853350,0.13184366,96658.0,96657.0,0.32446792]
[1740251861407,0.13184366,96658.0,96657.0,0.32531802]
[1740251864313,0.13184366,96658.0,96657.0,0.35640302]
[1740251870756,0.04954366,96658.0,96657.0,0.35640302]
[1740251873279,0.00174366,96658.0,96657.0,0.35640302]
[1740251883446,0.00174366,96658.0,96657.0,0.32531802]
[1740251883949,0.00174366,96658.0,96657.0,0.29431614]
[1740251884496,0.00174366,96658.0,96657.0,0.13912914]
[1740251884737,0.08214366,96658.0,96657.0,0.13912914]
[1740251884948,0.08214366,96658.0,96657.0,0.03648345]
[1740251884949,0.13164366,96658.0,96657.0,0.03648345]
[1740251885563,0.13164366,96658.0,96657.0,0.02948345]
[1740251885867,0.13164366,96658.0,96657.0,0.0028501]
[1740251886017,0.13164366,96658.0,96657.0,0.03148345]
[1740251886225,0.13164366,96658.0,96657.0,0.0048501]
[1740251886424,0.13164366,96658.0,96657.0,0.02748345]
[1740251886648,0.13164366,96658.0,96657.0,0.0008501]
[1740251886848,0.13164366,96658.0,96657.0,0.02748345]
[1740251887009,0.13164366,96658.0,96657.0,0.0008501]
[1740251887211,0.13164366,96658.0,96657.0,0.02748345]
[1740251887466,0.13164366,96658.0,96657.0,0.0008501]
[1740251887671,0.13164366,96658.0,96657.0,0.02948345]
[1740251887875,0.13164366,96658.0,96657.0,0.0028501]
[1740251889509,0.13164366,96658.0,96657.0,0.02948345]
[1740251889684,0.13164366,96658.0,96657.0,0.0028501]
[1740251889863,0.13164366,96658.0,96657.0,0.02948345]
[1740251890068,0.13164366,96658.0,96657.0,0.0028501]
[1740251890472,0.13164366,96658.0,96657.0,0.02948345]
[1740251890693,0.13164366,96658.0,96657.0,0.0028501]
[1740251892097,0.13935958,96658.0,96657.0,0.0028501]
[1740251894832,0.13164366,96658.0,96657.0,0.0028501]
[1740251896368,0.13264371,96658.0,96657.0,0.0028501]
[1740251897080,0.14035565,96658.0,96657.0,0.0028501]
[1740251897290,0.29554165,96658.0,96657.0,0.0028501]
[1740251897488,0.4445416,96658.0,96657.0,0.0028501]
[1740251898308,0.4445416,96658.0,96657.0,0.0008501]
[1740251898703,0.4455416,96658.0,96657.0,0.0008501]
[1740251898925,0.43782966,96658.0,96657.0,0.0008501]
[1740251899405,0.44553842,96658.0,96657.0,0.0008501]
[1740251899766,0.44453842,96658.0,96657.0,0.0008501]
[1740251900183,0.44553842,96658.0,96657.0,0.0008501]
[1740251900372,0.43782966,96658.0,96657.0,0.0008501]
[1740251910803,0.43782966,96658.0,96657.0,0.02207614]
[1740251915805,0.44554797,96658.0,96657.0,0.0008501]
[1740251915999,0.296839,96658.0,96657.0,0.0008501]
[1740251916200,0.166939,96658.0,96657.0,0.0008501]
[1740251917045,0.015939,96658.0,96657.0,0.0008501]
[1740251917472,0.016939,96658.0,96657.0,0.0008501]
[1740251917879,0.015939,96658.0,96657.0,0.0008501]
[1740251919326,0.015939,96658.0,96657.0,0.1560371]
[1740251919536,0.015939,96658.0,96657.0,0.0008501]
[1740251919940,0.00946197,96658.0,96657.0,0.0008501]
[1740251922129,0.01593828,96658.0,96657.0,0.0008501]
[1740251926040,0.01593828,96658.0,96657.0,0.02756971]
[1740251927614,0.01593828,96658.0,96657.0,0.18275671]
[1740251927820,0.01593828,96658.0,96657.0,0.2854024]
[1740251928498,0.01593828,96658.0,96657.0,0.29623853]
[1740251928698,0.01593828,96658.0,96657.0,0.2854024]
[1740251929231,0.01593828,96658.0,96657.0,0.2864024]
[1740251931976,0.01593828,96658.0,96657.0,0.34681945]
[1740251932219,0.01593828,96658.0,96657.0,0.42341945]
[1740251933229,0.00821997,96658.0,96657.0,0.42241945]
[1740251933611,0.00821997,96658.0,96657.0,0.42641945]
[1740251933817,0.00174366,96658.0,96657.0,0.42641945]
[1740251940764,0.00174366,96658.0,96657.0,0.4158024]
[1740251941127,0.00174366,96658.0,96657.0,0.42627035]
[1740251943574,0.00174366,96658.0,96657.0,0.2894024]
[1740251948104,0.00174366,96658.0,96657.0,0.03156971]
[1740251948308,0.00174366,96658.0,96657.0,0.18675671]
[1740251948501,0.00174366,96658.0,96657.0,0.03156971]
[1740251948731,0.00821915,96658.0,96657.0,0.03156971]
[1740251948936,0.00821915,96658.0,96657.0,0.18675671]
[1740251954925,0.01593937,96658.0,96657.0,0.18675671]
[1740251959619,0.01593937,96658.0,96657.0,0.26695671]
[1740251960338,0.00946388,96658.0,96657.0,0.26695671]
[1740251961124,0.00946388,96658.0,96657.0,0.3696024]
[1740251961677,0.00946388,96658.0,96657.0,0.4181024]
[1740251963111,0.00174366,96658.0,96657.0,0.4181024]
[1740251963674,0.00174366,96658.0,96657.0,0.4141024]
[1740251963870,0.00174366,96658.0,96657.0,0.44643694]
[1740251964071,0.00174366,96658.0,96657.0,0.45343694]
[1740251964699,0.00174366,96658.0,96657.0,0.4211024]
[1740251964962,0.00174366,96658.0,96657.0,0.4201024]
[1740251965137,0.00174366,96658.0,96657.0,0.4231024]
[1740251965730,0.00174366,96658.0,96657.0,0.4171024]
[1740251966095,0.00174366,96658.0,96657.0,0.4241024]
[1740251968375,0.00174366,96658.0,96657.0,0.4211024]
[1740251968884,0.00174366,96658.0,96657.0,0.4241024]
[1740251969285,0.00174366,96658.0,96657.0,0.4171024]
[1740251969623,0.00174366,96658.0,96657.0,0.4241024]
[1740251970068,0.00174366,96658.0,96657.0,0.4141024]
[1740251970465,0.00174366,96658.0,96657.0,0.4251024]
[1740251973102,0.00174366,96658.0,96657.0,0.4181024]
[1740251973280,0.00174366,96658.0,96657.0,0.4211024]
[1740251973483,0.00174366,96658.0,96657.0,0.4251024]
[1740251973911,0.00174366,96658.0,96657.0,0.4181024]
[1740251974092,0.00174366,96658.0,96657.0,0.4251024]
[1740251990312,0.00174366,96658.0,96657.0,0.4327424]
[1740252002223,0.00174366,96658.0,96657.0,0.3040424]
[1740252003588,0.00174366,96658.0,96657.0,0.33638144]
[1740252010206,0.00174366,96658.0,96657.0,0.42934575]
[1740252013962,0.00174366,96658.0,96657.0,0.33638144]
[1740252014499,6.6e-07,96665.0,96664.0,0.387376]
[1740252014700,6.6e-07,96665.0,96664.0,0.52236073]
[1740252014925,6.6e-07,96665.0,96664.0,0.54906997]
[1740252015642,6.6e-07,96665.0,96664.0,0.59014897]
[1740252015855,6.6e-07,96665.0,96664.0,0.58714897]
[1740252016111,6.6e-07,96665.0,96664.0,0.58014897]
[1740252016348,6.6e-07,96665.0,96664.0,0.58614897]
[1740252016526,6.6e-07,96665.0,96664.0,0.59314897]
[1740252017454,6.6e-07,96665.0,96664.0,0.60078897]
[1740252018607,6.6e-07,96665.0,96664.0,0.92448897]
[1740252020770,6.6e-07,96665.0,96664.0,0.94509464]
[1740252021153,6.6e-07,96665.0,96664.0,0.94594504]
[1740252021561,6.6e-07,96665.0,96664.0,0.95377004]
[1740252021762,6.6e-07,96665.0,96664.0,1.0613687]
[1740252022572,6.6e-07,96665.0,96664.0,1.0543687]
[1740252022991,6.6e-07,96665.0,96664.0,1.0553687]
[1740252023332,6.6e-07,96665.0,96664.0,1.0623687]
[1740252026204,6.6e-07,96665.0,96664.0,0.96931089]
[1740252027642,6.6e-07,96665.0,96664.0,1.01801089]
[1740252028336,0.0815,96703.0,96688.0,0.155138]
[1740252028538,0.00214266,96689.0,96688.0,0.25778369]
[1740252028948,0.00214266,96689.0,96688.0,0.2844574]
[1740252029595,0.00214266,96689.0,96688.0,0.2884574]
[1740252029898,0.00214266,96689.0,96688.0,0.30619921]
[1740252035474,0.00214266,96689.0,96688.0,0.32659537]
[1740252044348,0.00214266,96689.0,96688.0,0.35767037]
[1740252057685,0.00214266,96689.0,96688.0,0.35687877]
[1740252066014,0.00214266,96689.0,96688.0,0.2946658]
[1740252067810,0.00861599,96689.0,96688.0,0.2946658]
[1740252069913,0.00861599,96689.0,96688.0,0.2955159]
[1740252075328,0.00214266,96689.0,96688.0,0.2955159]
[1740252078495,0.00861586,96689.0,96688.0,0.2955159]
[1740252082416,0.00214266,96689.0,96688.0,0.2955159]
[1740252085139,0.00861597,96689.0,96688.0,0.2955159]
[1740252092312,0.00861597,96689.0,96688.0,0.1411695]
[1740252092513,0.09161597,96689.0,96688.0,0.1411695]
[1740252093085,0.09161597,96689.0,96688.0,0.1341695]
[1740252093284,0.09161597,96689.0,96688.0,0.1361695]
[1740252093654,0.0993422,96689.0,96688.0,0.1361695]
[1740252093879,0.0993422,96689.0,96688.0,0.1301695]
[1740252094103,0.0993422,96689.0,96688.0,0.1341695]
[1740252094732,0.0993422,96689.0,96688.0,0.1301695]
[1740252094933,0.0993422,96689.0,96688.0,0.1321695]
[1740252098236,0.0993422,96689.0,96688.0,0.02952381]
[1740252098646,0.0993422,96689.0,96688.0,0.0028501]
[1740252099645,0.0993422,96689.0,96688.0,0.02952381]
[1740252105640,0.10034225,96689.0,96688.0,0.02952381]
[1740252105763,0.10034225,96689.0,96688.0,0.0028501]
[1740252107217,0.0993422,96689.0,96688.0,0.0028501]
[1740252109438,0.0993422,96689.0,96688.0,0.02952381]
[1740252110764,0.0983422,96689.0,96688.0,0.0028501]
[1740252114803,0.0153422,96689.0,96688.0,0.0028501]
[1740252116606,0.0153422,96689.0,96688.0,0.02952381]
[1740252116802,0.0153422,96689.0,96688.0,0.0028501]
[1740252117017,0.0153422,96689.0,96688.0,0.02952381]
[1740252117216,0.0153422,96689.0,96688.0,0.0028501]
[1740252117368,0.0153422,96689.0,96688.0,0.02952381]
[1740252119392,0.0153422,96689.0,96688.0,0.05019546]
[1740252121398,0.0153422,96689.0,96688.0,0.02352175]
[1740252122584,0.0153422,96689.0,96688.0,0.05019546]
[1740252127656,0.0153422,96689.0,96688.0,0.02352175]
[1740252135460,0.0153422,96689.0,96688.0,0.05019546]
[1740252135664,0.0153422,96689.0,96688.0,0.02352175]
[1740252136516,0.0153422,96689.0,96688.0,0.05019546]
[1740252136741,0.0153422,96689.0,96688.0,0.02352175]
[1740252181131,0.1704782,96689.0,96688.0,0.02352175]
[1740252181352,0.17147825,96689.0,96688.0,0.02352175]
[1740252181629,0.3204782,96689.0,96688.0,0.0028501]
[1740252182398,0.3204782,96689.0,96688.0,0.0008501]
[1740252187944,0.3655782,96689.0,96688.0,0.0008501]
[1740252188172,0.59116631,96689.0,96688.0,0.0008501]
[1740252189355,0.59116631,96689.0,96688.0,0.0018501]
[1740252189751,0.59116631,96689.0,96688.0,0.00085738]
[1740252190160,0.42268485,96684.0,96683.0,0.00010346]
[1740252191005,0.75238485,96684.0,96683.0,0.00010346]
[1740252191248,0.76011108,96684.0,96683.0,0.00010346]
[1740252191683,0.76511108,96684.0,96683.0,0.00110346]
[1740252191853,0.76911108,96684.0,96683.0,0.00110346]
[1740252192062,0.77558439,96684.0,96683.0,0.00110346]
[1740252192598,0.77158439,96684.0,96683.0,0.00110346]
[1740252193171,0.49889954,96684.0,96683.0,0.00110346]
[1740252193510,0.50389954,96684.0,96683.0,0.00110346]
[1740252193844,0.34889954,96684.0,96683.0,0.00010346]
[1740252194374,0.35589954,96684.0,96683.0,0.15624946]
[1740252194587,0.34889954,96684.0,96683.0,0.23174946]
[1740252194783,0.34989954,96684.0,96683.0,0.07760346]
[1740252194978,0.34989954,96684.0,96683.0,0.23274946]
[1740252195179,0.34389954,96684.0,96683.0,0.23174946]
[1740252195380,0.35389954,96684.0,96683.0,0.07660346]
[1740252195988,0.34117331,96684.0,96683.0,0.07660346]
[1740252196193,0.34117331,96684.0,96683.0,0.07745386]
[1740252197127,0.01447331,96684.0,96683.0,0.07745386]
[1740252198194,0.01447331,96684.0,96683.0,0.23259986]
[1740252201437,0.01447331,96684.0,96683.0,0.25936448]
[1740252202511,0.02217936,96684.0,96683.0,0.25936448]
[1740252204439,0.01447331,96684.0,96683.0,0.25936448]
[1740252217960,0.01447331,96684.0,96683.0,0.28045178]
[1740252218540,0.01447331,96684.0,96683.0,0.38309747]
[1740252219756,0.00647331,96684.0,96683.0,0.38309747]
[1740252220371,0.00647331,96684.0,96683.0,0.38709747]
[1740252220536,0.0017008,96688.0,96687.0,0.155139]
[1740252220732,0.0017008,96688.0,96687.0,0.25778469]
[1740252221142,0.0017008,96688.0,96687.0,0.28454339]
[1740252222522,0.0017008,96688.0,96687.0,0.28654339]
[1740252223006,0.0027008,96688.0,96687.0,0.28654339]
[1740252224164,0.00917422,96688.0,96687.0,0.28654339]
[1740252225073,0.00917422,96688.0,96687.0,0.41274339]
[1740252226173,0.00917422,96688.0,96687.0,0.41074339]
[1740252226312,0.00817422,96688.0,96687.0,0.41574339]
[1740252226713,0.00817422,96688.0,96687.0,0.41674339]
[1740252227360,0.0017008,96688.0,96687.0,0.41674339]
[1740252227946,0.0017008,96688.0,96687.0,0.43781423]
[1740252233597,0.0017008,96688.0,96687.0,0.43866463]
[1740252251818,0.0017008,96688.0,96687.0,0.44626463]
[1740252253317,0.0017008,96688.0,96687.0,0.31246463]
[1740252253530,0.0017008,96688.0,96687.0,0.32006463]
[1740252261829,0.0017008,96688.0,96687.0,0.3524125]
[1740252272491,0.0017008,96688.0,96687.0,0.3565565]
[1740252273244,0.0017008,96688.0,96687.0,0.32420863]
[1740252273663,0.0017008,96688.0,96687.0,0.63692258]
[1740252274673,0.0017008,96688.0,96687.0,0.63092258]
[1740252274867,0.0027008,96688.0,96687.0,0.64492258]
[1740252275206,0.0037008,96688.0,96687.0,0.64492258]
[1740252284154,0.0037008,96688.0,96687.0,0.64077858]
[1740252287655,0.0037008,96688.0,96687.0,0.733777]
[1740252291226,0.0037008,96688.0,96687.0,0.64077858]
[1740252294462,8e-07,96688.0,96687.0,0.64077858]
[1740252295025,8e-07,96688.0,96687.0,0.96447858]
[1740252298519,8e-07,96688.0,96687.0,0.83407858]
[1740252298934,8e-07,96688.0,96687.0,0.67647858]
[1740252299210,8e-07,96688.0,96687.0,0.68407858]
[1740252300001,0.00114266,96689.0,96687.0,0.52193958]
[1740252300200,0.00114266,96689.0,96688.0,0.25778369]
[1740252300378,0.00114266,96689.0,96688.0,0.28454091]
[1740252302758,0.00214266,96689.0,96688.0,0.29154091]
[1740252303106,0.00214266,96689.0,96688.0,0.29854091]
[1740252303939,0.00214266,96689.0,96688.0,0.30614091]
[1740252305465,0.00214266,96689.0,96688.0,0.3272085]
[1740252311679,0.00214266,96689.0,96688.0,0.33503894]
[1740252320588,0.00214266,96689.0,96688.0,0.36736281]
[1740252327588,0.00214266,96689.0,96688.0,0.36821321]
[1740252338487,0.00214266,96689.0,96688.0,0.36061321]
[1740252338710,0.00214266,96689.0,96688.0,0.36821321]
[1740252347940,0.00214266,96689.0,96688.0,0.45031321]
[1740252351358,0.00214266,96689.0,96688.0,0.44271321]
[1740252351656,0.00214266,96689.0,96688.0,0.45031321]
[1740252359613,0.00214266,96689.0,96688.0,0.54331163]
[1740252366072,0.00214266,96689.0,96688.0,0.45031321]
[1740252368465,0.00214266,96689.0,96688.0,0.36821321]
[1740252369542,0.00214266,96689.0,96688.0,0.46121163]
[1740252374456,0.00214266,96689.0,96688.0,0.36821321]
[1740252395061,0.00214266,96689.0,96688.0,0.36061321]
[1740252395419,0.00214266,96689.0,96688.0,0.36821321]
[1740252400785,0.00214266,96689.0,96688.0,0.45061321]
[1740252401853,6.6e-07,96689.0,96688.0,0.60061321]
[1740252402054,6.6e-07,96689.0,96688.0,0.97221321]
[1740252403566,6.6e-07,96689.0,96688.0,0.97635621]
[1740252410400,0.00170146,96689.0,96688.0,0.97635621]
[1740252411040,2.6e-07,96698.0,96697.0,0.155123]
[1740252411241,2.6e-07,96698.0,96697.0,0.54817711]
[1740252411446,2.6e-07,96698.0,96697.0,0.54693646]
[1740252411849,2.6e-07,96698.0,96697.0,0.55107946]
[1740252412331,2.6e-07,96698.0,96697.0,0.55807946]
[1740252412806,2.6e-07,96698.0,96697.0,0.55107946]
[1740252413494,2.6e-07,96698.0,96697.0,0.56207946]
[1740252413701,2.6e-07,96698.0,96697.0,0.55807946]
[1740252414225,0.00100026,96698.0,96697.0,0.56507946]
[1740252416785,0.00100026,96698.0,96697.0,0.88877946]
[1740252417548,2.6e-07,96698.0,96697.0,0.88877946]
[1740252419011,2.6e-07,96698.0,96697.0,0.90897658]
[1740252421538,0.00170106,96698.0,96697.0,0.90897658]
[1740252431218,0.00170106,96698.0,96697.0,0.91657658]
[1740252431423,0.00170106,96698.0,96697.0,0.83647658]
[1740252433247,0.00170106,96698.0,96697.0,0.83732698]
[1740252441146,0.00170106,96698.0,96697.0,0.82972698]
[1740252441351,0.00170106,96698.0,96697.0,0.83732698]
[1740252457885,6e-08,96698.0,96697.0,0.83732698]
[1740252458063,6.6e-07,96710.0,96709.0,0.305104]
[1740252458323,4.371e-05,96710.0,96709.0,0.44007356]
[1740252458528,4.371e-05,96710.0,96709.0,0.46679971]
[1740252458710,4.371e-05,96710.0,96709.0,0.49786571]
[1740252459400,4.371e-05,96710.0,96709.0,0.50486571]
[1740252459930,4.371e-05,96710.0,96709.0,0.50886571]
[1740252460591,4.371e-05,96710.0,96709.0,0.49786571]
[1740252460761,4.371e-05,96710.0,96709.0,0.50486571]
[1740252460965,4.371e-05,96710.0,96709.0,0.51086571]
[1740252461547,4.371e-05,96710.0,96709.0,0.83456571]
[1740252464294,4.371e-05,96710.0,96709.0,0.80349971]
[1740252470173,4.371e-05,96710.0,96709.0,0.81804056]
[1740252525277,4.371e-05,96710.0,96709.0,0.82218156]
[1740252542309,4.371e-05,96710.0,96709.0,0.81518156]
[1740252542783,4.371e-05,96710.0,96709.0,0.82218156]
[1740252543769,4.371e-05,96710.0,96709.0,0.81618156]
[1740252543976,4.371e-05,96710.0,96709.0,0.82318156]
[1740252552034,4.371e-05,96710.0,96709.0,0.82318156]
[1740252565388,4.371e-05,96710.0,96709.0,0.80449971]
[1740252565595,4.371e-05,96710.0,96709.0,0.81205971]
[1740252565708,4.371e-05,96710.0,96709.0,0.80449971]
[1740252565922,4.371e-05,96710.0,96709.0,0.81205971]
[1740252566880,4.371e-05,96710.0,96709.0,0.79749971]
[1740252567085,4.371e-05,96710.0,96709.0,0.79805971]
[1740252567463,4.371e-05,96710.0,96709.0,0.80405971]
[1740252567669,4.371e-05,96710.0,96709.0,0.80505971]
[1740252568090,4.371e-05,96710.0,96709.0,0.80305971]
[1740252568404,4.371e-05,96710.0,96709.0,0.81005971]
[1740252576893,4.371e-05,96710.0,96709.0,0.90311316]
[1740252580307,4.371e-05,96710.0,96709.0,0.81005971]
[1740252583729,0.00158789,96716.0,96715.0,0.305094]
[1740252583932,0.00158789,96716.0,96715.0,0.40773969]
[1740252585218,0.00158789,96716.0,96715.0,0.41473969]
[1740252586255,0.00158789,96716.0,96715.0,0.41773969]
[1740252588467,0.00158789,96716.0,96715.0,0.42529969]
[1740252591008,0.00158789,96716.0,96715.0,0.44639072]
[1740252599363,0.00158789,96716.0,96715.0,0.47872462]
[1740252600963,0.00158789,96716.0,96715.0,0.32116462]
[1740252601241,0.00158789,96716.0,96715.0,0.28883072]
[1740252601451,0.00158789,96716.0,96715.0,0.26773969]
[1740252617010,0.00258794,96716.0,96715.0,0.11264569]
[1740252617161,0.00158789,96716.0,96715.0,0.11264569]
[1740252617367,0.00258794,96716.0,96715.0,0.26773969]
[1740252617615,0.00158789,96716.0,96715.0,0.13936296]
[1740252618018,0.00932493,96716.0,96715.0,0.13936296]
[1740252618858,0.00932493,96716.0,96715.0,0.13236296]
[1740252619067,0.00932493,96716.0,96715.0,0.13636296]
[1740252619605,0.00932493,96716.0,96715.0,0.12936296]
[1740252619807,0.00932493,96716.0,96715.0,0.13236296]
[1740252621979,0.00932493,96716.0,96715.0,0.28745696]
[1740252623756,0.00158789,96716.0,96715.0,0.28745696]
[1740252627170,0.00933108,96716.0,96715.0,0.28745696]
[1740252653382,0.00158789,96716.0,96715.0,0.28745696]
[1740252654193,0.00158789,96716.0,96715.0,0.28445696]
[1740252654748,0.00158789,96716.0,96715.0,0.28845696]
[1740252661823,0.00158789,96716.0,96715.0,0.36935696]
[1740252662044,0.00158789,96716.0,96715.0,0.41815696]
[1740252662245,0.00158789,96716.0,96715.0,0.60047826]
[1740252663286,0.00158789,96716.0,96715.0,0.59647826]
[1740252663463,0.00158789,96716.0,96715.0,0.60422717]
[1740252663667,0.00158789,96716.0,96715.0,0.60522717]
[1740252664163,0.00158789,96716.0,96715.0,0.61122717]
[1740252666428,0.00158789,96716.0,96715.0,0.93492717]
[1740252669330,0.00158789,96716.0,96715.0,0.90260587]
[1740252673032,0.00158789,96716.0,96715.0,0.89560587]
[1740252673236,0.00158789,96716.0,96715.0,0.90460587]
[1740252674296,0.00158789,96716.0,96715.0,0.89760587]
[1740252674748,0.00158789,96716.0,96715.0,0.89560587]
[1740252675146,0.00158789,96716.0,96715.0,0.90060587]
[1740252675753,0.00158789,96716.0,96715.0,0.90760587]
[1740252681629,8.9e-07,96716.0,96715.0,0.90760587]
[1740252683383,8.9e-07,96716.0,96715.0,0.93985241]
[1740252684269,8.9e-07,96716.0,96715.0,0.94741241]
[1740252694269,0.0017008,96724.0,96715.0,0.94741241]
[1740252694270,6.9e-07,96724.0,96723.0,0.305082]
[1740252694476,6.9e-07,96724.0,96723.0,0.51787423]
[1740252694679,6.9e-07,96729.0,96728.0,0.305074]
[1740252694905,8.082e-05,96729.0,96728.0,0.48646623]
[1740252695103,8.082e-05,96729.0,96728.0,0.51316427]
[1740252696374,8.082e-05,96729.0,96728.0,0.51816427]
[1740252696790,8.082e-05,96729.0,96728.0,0.52831663]
[1740252697247,8.082e-05,96729.0,96728.0,0.53531663]
[1740252700139,8.2e-07,96729.0,96728.0,0.53531663]
[1740252703096,2.2e-07,96729.0,96728.0,0.53531663]
[1740252706241,2.2e-07,96729.0,96728.0,0.48881663]
[1740252706446,2.2e-07,96729.0,96728.0,0.49637663]
[1740252706767,2.2e-07,96729.0,96728.0,0.45657009]
[1740252706995,2.2e-07,96729.0,96728.0,0.46413009]